[Event "Kadettallsvenskan 2018, sodra kvalet"]
[Site "Vegagatan 20, Gothenburg, Sweden"]
[Date "2018.04.14"]
[Round "1.4"]
[White "Hattab, Nuhad"]
[Black "Johansson, William"]
[Result "1-0"]
[TimeControl "45 minutes for the whole game + 10 seconds per move from move one."]
[WhiteFideId "1738992"]
[BlackFideId "1744070"]
[WhiteElo "1447"]
[BlackElo "1462"]

1. e4 {[%clk 00:45:17]} {[%emt 00:00:02]} e5 {[%clk 00:45:17]} {[%emt
00:00:04]} 2. Nf3 {[%clk 00:45:26]} {[%emt 00:00:02]} Nc6 {[%clk 00:45:24]}
{[%emt 00:00:03]} 3. Nc3 {[%clk 00:45:34]} {[%emt 00:00:02]} Nf6 {[%clk
00:45:08]} {[%emt 00:00:26]} 4. g3 {[%clk 00:45:42]} {[%emt 00:00:02]} d6
{[%clk 00:43:08]} {[%emt 00:02:10]} 5. h3 {[%clk 00:45:46]} {[%emt 00:00:05]}
Be7 {[%clk 00:43:08]} {[%emt 00:00:10]} 6. Bg2 {[%clk 00:45:52]} {[%emt
00:00:04]} h6 {[%clk 00:41:07]} {[%emt 00:02:13]} 7. O-O {[%clk 00:45:32]}
{[%emt 00:00:28]} Be6 {[%clk 00:40:02]} {[%emt 00:01:16]} 8. d3 {[%clk
00:45:12]} {[%emt 00:00:30]} Qd7 {[%clk 00:39:00]} {[%emt 00:01:13]} 9. Kh2
{[%clk 00:44:58]} {[%emt 00:00:23]} g5 {[%clk 00:36:38]} {[%emt 00:02:32]} 10.
d4 {[%clk 00:33:32]} {[%emt 00:11:37]} exd4 {[%clk 00:30:24]} {[%emt 00:06:24]}
11. Nxd4 {[%clk 00:33:10]} {[%emt 00:00:33]} Nxd4 {[%clk 00:28:24]} {[%emt
00:02:10]} 12. Qxd4 {[%clk 00:33:02]} {[%emt 00:00:17]} c5 {[%clk 00:27:55]}
{[%emt 00:00:39]} 13. Qe3 {[%clk 00:31:11]} {[%emt 00:02:00]} O-O-O {[%clk
00:25:13]} {[%emt 00:02:53]} 14. e5 {[%clk 00:26:59]} {[%emt 00:04:22]} Ne8
{[%clk 00:17:33]} {[%emt 00:07:49]} 15. exd6 {[%clk 00:25:15]} {[%emt
00:01:53]} Bxd6 {[%clk 00:17:24]} {[%emt 00:00:20]} 16. Ne4 {[%clk 00:25:02]}
{[%emt 00:00:21]} Qc7 {[%clk 00:16:55]} {[%emt 00:00:41]} 17. Qc3 {[%clk
00:24:35]} {[%emt 00:00:34]} Rf8 {[%clk 00:15:21]} {[%emt 00:01:46]} 18. Be3
{[%clk 00:23:49]} {[%emt 00:00:55]} b6 {[%clk 00:14:42]} {[%emt 00:00:51]} 19.
Nxd6+ {[%clk 00:22:55]} {[%emt 00:01:04]} Nxd6 {[%clk 00:14:45]} {[%emt
00:00:08]} 20. a4 {[%clk 00:17:42]} {[%emt 00:05:23]} Nc4 {[%clk 00:13:00]}
{[%emt 00:01:55]} 21. b3 {[%clk 00:15:36]} {[%emt 00:02:15]} Nxe3 {[%clk
00:12:19]} {[%emt 00:00:50]} 22. Qxe3 {[%clk 00:14:51]} {[%emt 00:00:53]} Rde8
{[%clk 00:10:42]} {[%emt 00:01:49]} 23. Qf3 {[%clk 00:12:39]} {[%emt 00:02:22]}
Bd7 {[%clk 00:07:03]} {[%emt 00:03:49]} 24. Rfd1 {[%clk 00:09:35]} {[%emt
00:03:14]} f5 {[%clk 00:06:06]} {[%emt 00:01:08]} 25. Qa8+ {[%clk 00:09:31]}
{[%emt 00:00:13]} Qb8 {[%clk 00:06:03]} {[%emt 00:00:13]} 26. Qxb8+ {[%clk
00:09:39]} {[%emt 00:00:02]} Kxb8 {[%clk 00:06:11]} {[%emt 00:00:02]} 27. Rxd7
{[%clk 00:09:46]} {[%emt 00:00:02]} f4 {[%clk 00:05:56]} {[%emt 00:00:26]} 28.
gxf4 {[%clk 00:08:42]} {[%emt 00:01:14]} Rxf4 {[%clk 00:06:00]} {[%emt
00:00:05]} 29. Rb7+ {[%clk 00:08:47]} {[%emt 00:00:04]} Kc8 {[%clk 00:06:08]}
{[%emt 00:00:05]} 30. Rxa7 {[%clk 00:08:51]} {[%emt 00:00:05]} Rxf2 {[%clk
00:06:14]} {[%emt 00:00:04]} 31. Ra8+ {[%clk 00:08:49]} {[%emt 00:00:09]} Kd7
{[%clk 00:06:23]} {[%emt 00:00:04]} 32. Rxe8 {[%clk 00:08:57]} {[%emt
00:00:02]} Kxe8 {[%clk 00:06:31]} {[%emt 00:00:03]} 33. Re1+ {[%clk 00:08:52]}
{[%emt 00:00:10]} Kd7 {[%clk 00:06:40]} {[%emt 00:00:06]} 34. c4 {[%clk
00:08:40]} {[%emt 00:00:20]} Rb2 {[%clk 00:06:47]} {[%emt 00:00:05]} 35. Re3
{[%clk 00:08:37]} {[%emt 00:00:09]} h5 {[%clk 00:06:22]} {[%emt 00:00:39]} 36.
Rg3 {[%clk 00:08:00]} {[%emt 00:00:46]} h4 {[%clk 00:05:47]} {[%emt 00:00:46]}
37. Rxg5 {[%clk 00:08:06]} {[%emt 00:00:04]} Rxb3 {[%clk 00:05:56]} {[%emt
00:00:02]} 38. Rg7+ {[%clk 00:07:21]} {[%emt 00:00:49]} Kd6 {[%clk 00:05:57]}
{[%emt 00:00:13]} 39. Rg6+ {[%clk 00:07:29]} {[%emt 00:00:02]} Kd7 {[%clk
00:06:03]} {[%emt 00:00:05]} 40. Bc6+ {[%clk 00:07:32]} {[%emt 00:00:05]} Kc7
{[%clk 00:06:12]} {[%emt 00:00:03]} 41. Bb5 {[%clk 00:07:41]} {[%emt 00:00:01]}
Rb2 {[%clk 00:06:10]} {[%emt 00:00:12]} 42. Rg2 {[%clk 00:07:45]} {[%emt
00:00:04]} Rb3 {[%clk 00:05:53]} {[%emt 00:00:28]} 43. Rg7+ {[%clk 00:07:12]}
{[%emt 00:00:41]} Kb8 {[%clk 00:05:26]} {[%emt 00:00:40]} 44. Rh7 {[%clk
00:07:07]} {[%emt 00:00:13]} Rb2 {[%clk 00:05:26]} {[%emt 00:00:11]} 45. Kg1
{[%clk 00:07:15]} {[%emt 00:00:01]} Rb1+ {[%clk 00:05:10]} {[%emt 00:00:27]} 46.
Kf2 {[%clk 00:07:24]} {[%emt 00:00:01]} Rb3 {[%clk 00:04:32]} {[%emt 00:00:48]}
47. Rxh4 {[%clk 00:07:31]} {[%emt 00:00:03]} Rd3 {[%clk 00:04:29]} {[%emt
00:00:12]} 48. Rh8+ {[%clk 00:07:29]} {[%emt 00:00:11]} Kc7 {[%clk 00:04:38]}
{[%emt 00:00:04]} 49. Rh7+ {[%clk 00:07:32]} {[%emt 00:00:07]} Kb8 {[%clk
00:04:39]} {[%emt 00:00:09]} 50. h4 {[%clk 00:07:41]} {[%emt 00:00:02]} Kc8
{[%clk 00:03:49]} {[%emt 00:00:59]} 51. h5 {[%clk 00:07:44]} {[%emt 00:00:08]}
Rd6 {[%clk 00:03:34]} {[%emt 00:00:26]} 52. h6 {[%clk 00:07:43]} {[%emt
00:00:10]} Rg6 {[%clk 00:03:26]} {[%emt 00:00:18]} 53. Rh8+ {[%clk 00:07:05]}
{[%emt 00:00:48]} Kc7 {[%clk 00:03:02]} {[%emt 00:00:34]} 54. h7 {[%clk
00:07:11]} {[%emt 00:00:04]} Rh6 {[%clk 00:03:01]} {[%emt 00:00:11]} 55. Kg3
{[%clk 00:07:03]} {[%emt 00:00:17]} Rg6+ {[%clk 00:01:55]} {[%emt 00:01:18]} 56.
Kh4 {[%clk 00:07:08]} {[%emt 00:00:05]} Rg1 {[%clk 00:01:31]} {[%emt 00:00:33]}
57. Be8 {[%clk 00:06:42]} {[%emt 00:00:33]} Kd8 {[%clk 00:01:26]} {[%emt
00:00:18]} 58. Bh5+ {[%clk 00:06:33]} {[%emt 00:00:19]} Ke7 {[%clk 00:01:20]}
{[%emt 00:00:17]} 59. Re8+ {[%clk 00:06:35]} {[%emt 00:00:05]} Kf6 {[%clk
00:01:22]} {[%emt 00:00:10]} 60. h8=Q+ {[%clk 00:06:42]} {[%emt 00:00:02]} 1-0

[Event "Kadettallsvenskan 2018, sodra kvalet"]
[Site "Vegagatan 20, Gothenburg, Sweden"]
[Date "2018.04.14"]
[Round "1.5"]
[White "Petersson, David"]
[Black "Nordin, Oscar"]
[Result "0-1"]
[TimeControl "45 minutes for the whole game + 10 seconds per move from move one."]
[WhiteFideId "1738658"]
[BlackFideId "1742302"]
[WhiteElo "1414"]
[BlackElo "1359"]

1. e4 {[%clk 00:45:15]} {[%emt 00:00:04]} e5 {[%clk 00:45:19]} {[%emt
00:00:02]} 2. Nf3 {[%clk 00:45:23]} {[%emt 00:00:02]} Nc6 {[%clk 00:45:28]}
{[%emt 00:00:01]} 3. Bc4 {[%clk 00:45:30]} {[%emt 00:00:02]} Nf6 {[%clk
00:45:37]} {[%emt 00:00:01]} 4. Ng5 {[%clk 00:45:05]} {[%emt 00:00:35]} d5
{[%clk 00:45:37]} {[%emt 00:00:10]} 5. exd5 {[%clk 00:45:05]} {[%emt 00:00:10]}
Nxd5 {[%clk 00:45:42]} {[%emt 00:00:04]} 6. d4 {[%clk 00:44:20]} {[%emt
00:00:56]} h6 {[%clk 00:45:25]} {[%emt 00:00:26]} 7. Nxf7 {[%clk 00:42:40]}
{[%emt 00:01:50]} Kxf7 {[%clk 00:45:21]} {[%emt 00:00:14]} 8. Qf3+ {[%clk
00:42:12]} {[%emt 00:00:38]} Ke6 {[%clk 00:45:27]} {[%emt 00:00:04]} 9. Nc3
{[%clk 00:26:46]} {[%emt 00:15:37]} Ncb4 {[%clk 00:44:11]} {[%emt 00:01:26]} 10.
O-O {[%clk 00:22:09]} {[%emt 00:04:47]} c6 {[%clk 00:43:48]} {[%emt 00:00:32]}
11. Re1 {[%clk 00:14:57]} {[%emt 00:07:22]} Qf6 {[%clk 00:41:22]} {[%emt
00:02:36]} 12. Rxe5+ {[%clk 00:11:35]} {[%emt 00:03:33]} Kf7 {[%clk 00:41:28]}
{[%emt 00:00:03]} 13. Qe2 {[%clk 00:09:16]} {[%emt 00:02:30]} Be6 {[%clk
00:40:13]} {[%emt 00:01:25]} 14. Bxd5 {[%clk 00:07:01]} {[%emt 00:02:26]} cxd5
{[%clk 00:39:52]} {[%emt 00:00:30]} 15. Nb5 {[%clk 00:05:55]} {[%emt 00:01:16]}
Bd7 {[%clk 00:37:40]} {[%emt 00:02:21]} 16. Nc7 {[%clk 00:04:39]} {[%emt
00:01:26]} Rc8 {[%clk 00:37:21]} {[%emt 00:00:28]} 17. Nxd5 {[%clk 00:04:26]}
{[%emt 00:00:23]} Nxd5 {[%clk 00:37:13]} {[%emt 00:00:18]} 18. Rxd5 {[%clk
00:04:30]} {[%emt 00:00:07]} Bc6 {[%clk 00:36:41]} {[%emt 00:00:42]} 19. Ra5
{[%clk 00:03:23]} {[%emt 00:01:17]} Re8 {[%clk 00:36:42]} {[%emt 00:00:08]} 20.
Qd1 {[%clk 00:03:12]} {[%emt 00:00:21]} Bb4 {[%clk 00:36:06]} {[%emt 00:00:46]}
21. Bd2 {[%clk 00:02:45]} {[%emt 00:00:37]} Bxa5 {[%clk 00:36:03]} {[%emt
00:00:13]} 22. Bxa5 {[%clk 00:02:52]} {[%emt 00:00:03]} Qg6 {[%clk 00:35:33]}
{[%emt 00:00:40]} 23. g3 {[%clk 00:02:38]} {[%emt 00:00:24]} Qe4 {[%clk
00:35:31]} {[%emt 00:00:10]} 24. Qh5+ {[%clk 00:02:16]} {[%emt 00:00:34]} Kg8
{[%clk 00:35:12]} {[%emt 00:00:28]} 25. f3 {[%clk 00:01:24]} {[%emt 00:01:04]}
Qe3+ {[%clk 00:34:51]} {[%emt 00:00:30]} 26. Kg2 {[%clk 00:01:18]} {[%emt
00:00:17]} Rf8 {[%clk 00:34:06]} {[%emt 00:00:52]} 27. Re1 {[%clk 00:01:01]}
{[%emt 00:00:30]} Bxf3+ {[%clk 00:34:11]} {[%emt 00:00:06]} 28. Qxf3 {[%clk
00:01:05]} {[%emt 00:00:05]} Qxf3+ {[%clk 00:34:17]} {[%emt 00:00:04]} 29. Kh3
{[%clk 00:01:06]} {[%emt 00:00:10]} Rf5 {[%clk 00:33:54]} {[%emt 00:00:33]} 30.
Re5 {[%clk 00:00:54]} {[%emt 00:00:22]} Rh5 {[%clk 00:33:56]} {[%emt 00:00:07]}
31. Rxh5 {[%clk 00:01:02]} {[%emt 00:00:03]} Qxh5 {[%clk 00:34:05]} {[%emt
00:00:01]} 32. Kg2 {[%clk 00:01:11]} {[%emt 00:00:01]} Kh7 {[%clk 00:34:13]}
{[%emt 00:00:02]} 33. Bc3 {[%clk 00:01:15]} {[%emt 00:00:06]} Re8 {[%clk
00:34:16]} {[%emt 00:00:05]} 34. Kf2 {[%clk 00:01:05]} {[%emt 00:00:22]} Qe2+
{[%clk 00:34:19]} {[%emt 00:00:06]} 35. Kg1 {[%clk 00:01:12]} {[%emt 00:00:04]}
Qe3+ {[%clk 00:34:11]} {[%emt 00:00:16]} 36. Kg2 {[%clk 00:01:13]} {[%emt
00:00:11]} Qe2+ {[%clk 00:34:03]} {[%emt 00:00:16]} 37. Kg1 {[%clk 00:01:11]}
{[%emt 00:00:13]} Qd1+ {[%clk 00:34:08]} {[%emt 00:00:02]} 38. Kg2 {[%clk
00:01:16]} {[%emt 00:00:08]} Re2+ {[%clk 00:34:05]} {[%emt 00:00:13]} 39. Kh3
{[%clk 00:01:24]} {[%emt 00:00:02]} Qf1 {[%clk 00:34:10]} {[%emt 00:00:05]} 40.
Kg4 {[%clk 00:01:28]} {[%emt 00:00:07]} Re4+ {[%clk 00:34:15]} {[%emt
00:00:03]} 41. Kh5 {[%clk 00:01:33]} {[%emt 00:00:06]} Qf5 {[%clk 00:34:20]}
{[%emt 00:00:05]} 0-1

[Event "Kadettallsvenskan 2018, sodra kvalet"]
[Site "Vegagatan 20, Gothenburg, Sweden"]
[Date "2018.04.14"]
[Round "1.6"]
[White "Jonsson, Jacob"]
[Black "Nilsson, Kajsa"]
[Result "1-0"]
[TimeControl "45 minutes for the whole game + 10 seconds per move from move one."]
[WhiteFideId "1726315"]
[BlackFideId "1725157"]
[WhiteElo "1871"]
[BlackElo "1693"]

1. d4 {[%clk 00:45:18]} {[%emt 00:00:02]} d5 {[%clk 00:45:10]} {[%emt
00:00:09]} 2. c4 {[%clk 00:45:22]} {[%emt 00:00:06]} e6 {[%clk 00:45:04]}
{[%emt 00:00:15]} 3. Nc3 {[%clk 00:45:26]} {[%emt 00:00:07]} Be7 {[%clk
00:44:56]} {[%emt 00:00:18]} 4. Nf3 {[%clk 00:45:12]} {[%emt 00:00:24]} Nf6
{[%clk 00:44:48]} {[%emt 00:00:19]} 5. cxd5 {[%clk 00:44:35]} {[%emt 00:00:47]}
exd5 {[%clk 00:43:26]} {[%emt 00:01:32]} 6. Bg5 {[%clk 00:44:12]} {[%emt
00:00:33]} O-O {[%clk 00:39:03]} {[%emt 00:04:33]} 7. e3 {[%clk 00:43:59]}
{[%emt 00:00:23]} h6 {[%clk 00:36:35]} {[%emt 00:02:38]} 8. Bh4 {[%clk
00:43:36]} {[%emt 00:00:33]} c6 {[%clk 00:33:48]} {[%emt 00:02:57]} 9. Bd3
{[%clk 00:42:54]} {[%emt 00:00:51]} Nbd7 {[%clk 00:31:36]} {[%emt 00:02:22]} 10.
O-O {[%clk 00:40:26]} {[%emt 00:02:38]} b6 {[%clk 00:31:05]} {[%emt 00:00:40]}
11. Rc1 {[%clk 00:27:25]} {[%emt 00:13:11]} Bb7 {[%clk 00:30:17]} {[%emt
00:00:59]} 12. Qe2 {[%clk 00:25:31]} {[%emt 00:02:04]} Re8 {[%clk 00:24:40]}
{[%emt 00:05:46]} 13. Na4 {[%clk 00:17:22]} {[%emt 00:08:19]} c5 {[%clk
00:19:26]} {[%emt 00:05:24]} 14. dxc5 {[%clk 00:17:04]} {[%emt 00:00:29]} Nxc5
{[%clk 00:19:04]} {[%emt 00:00:32]} 15. Nxc5 {[%clk 00:16:06]} {[%emt
00:01:08]} Bxc5 {[%clk 00:17:44]} {[%emt 00:01:30]} 16. Rfd1 {[%clk 00:13:10]}
{[%emt 00:03:06]} Qe7 {[%clk 00:16:20]} {[%emt 00:01:34]} 17. Bb1 {[%clk
00:09:23]} {[%emt 00:03:58]} Qe6 {[%clk 00:13:36]} {[%emt 00:02:53]} 18. Nd4
{[%clk 00:07:51]} {[%emt 00:01:42]} Qe5 {[%clk 00:11:39]} {[%emt 00:02:07]} 19.
Bxf6 {[%clk 00:06:42]} {[%emt 00:01:19]} Qxf6 {[%clk 00:10:19]} {[%emt
00:01:30]} 20. Qc2 {[%clk 00:04:48]} {[%emt 00:02:04]} Bxd4 {[%clk 00:06:53]}
{[%emt 00:03:36]} 21. Rxd4 {[%clk 00:04:55]} {[%emt 00:00:03]} Rac8 {[%clk
00:06:19]} {[%emt 00:00:44]} 22. Qh7+ {[%clk 00:04:37]} {[%emt 00:00:28]} Kf8
{[%clk 00:06:27]} {[%emt 00:00:02]} 23. Rcd1 {[%clk 00:04:45]} {[%emt
00:00:02]} Qg5 {[%clk 00:04:04]} {[%emt 00:02:34]} 24. h4 {[%clk 00:04:17]}
{[%emt 00:00:38]} Qf6 {[%clk 00:04:01]} {[%emt 00:00:12]} 25. Qd3 {[%clk
00:03:26]} {[%emt 00:01:01]} Qe5 {[%clk 00:03:21]} {[%emt 00:00:51]} 26. Qa3+
{[%clk 00:03:08]} {[%emt 00:00:27]} Kg8 {[%clk 00:02:56]} {[%emt 00:00:35]} 27.
Qxa7 {[%clk 00:03:16]} {[%emt 00:00:02]} Qc7 {[%clk 00:02:56]} {[%emt
00:00:10]} 28. Qa3 {[%clk 00:03:06]} {[%emt 00:00:19]} Qe5 {[%clk 00:02:18]}
{[%emt 00:00:48]} 29. Qd3 {[%clk 00:03:05]} {[%emt 00:00:11]} Qf6 {[%clk
00:02:02]} {[%emt 00:00:27]} 30. a3 {[%clk 00:02:54]} {[%emt 00:00:21]} Re5
{[%clk 00:01:23]} {[%emt 00:00:50]} 31. Rf4 {[%clk 00:02:14]} {[%emt 00:00:50]}
Qe6 {[%clk 00:01:16]} {[%emt 00:00:17]} 32. Qh7+ {[%clk 00:01:53]} {[%emt
00:00:31]} Kf8 {[%clk 00:01:25]} {[%emt 00:00:02]} 33. Qh8+ {[%clk 00:02:02]}
{[%emt 00:00:01]} Ke7 {[%clk 00:01:32]} {[%emt 00:00:02]} 34. Qxg7 {[%clk
00:02:11]} {[%emt 00:00:02]} Rxe3 {[%clk 00:01:04]} {[%emt 00:00:39]} 35. Rxf7+
{[%clk 00:02:13]} {[%emt 00:00:07]} Qxf7 {[%clk 00:01:10]} {[%emt 00:00:04]} 36.
Qxf7+ {[%clk 00:02:22]} {[%emt 00:00:01]} Kxf7 {[%clk 00:01:19]} 37. fxe3
{[%clk 00:02:31]} {[%emt 00:00:01]} Rg8 {[%clk 00:01:22]} {[%emt 00:00:07]} 38.
Rd4 {[%clk 00:02:29]} {[%emt 00:00:12]} Ke6 {[%clk 00:01:23]} {[%emt 00:00:09]}
39. Rb4 {[%clk 00:02:26]} {[%emt 00:00:13]} Ke5 {[%clk 00:01:14]} {[%emt
00:00:20]} 40. Rxb6 {[%clk 00:02:31]} {[%emt 00:00:04]} Ba8 {[%clk 00:01:23]}
{[%emt 00:00:01]} 41. Rxh6 {[%clk 00:02:19]} {[%emt 00:00:22]} d4 {[%clk
00:01:23]} {[%emt 00:00:11]} 42. exd4+ {[%clk 00:02:27]} {[%emt 00:00:02]} Kxd4
{[%clk 00:01:31]} {[%emt 00:00:02]} 43. Rg6 {[%clk 00:02:36]} {[%emt 00:00:01]}
Rh8 {[%clk 00:01:35]} {[%emt 00:00:07]} 44. g3 {[%clk 00:02:36]} {[%emt
00:00:10]} Re8 {[%clk 00:01:42]} {[%emt 00:00:03]} 45. Rd6+ {[%clk 00:02:14]}
{[%emt 00:00:32]} Kc5 {[%clk 00:01:46]} {[%emt 00:00:06]} 46. Rd1 {[%clk
00:02:20]} {[%emt 00:00:04]} Re2 {[%clk 00:01:46]} {[%emt 00:00:11]} 47. b4+
{[%clk 00:02:22]} {[%emt 00:00:08]} Kb6 {[%clk 00:01:43]} {[%emt 00:00:14]} 48.
Kf1 {[%clk 00:02:14]} {[%emt 00:00:17]} Rg2 {[%clk 00:01:38]} {[%emt 00:00:15]}
49. Rd3 {[%clk 00:02:19]} {[%emt 00:00:05]} Rh2 {[%clk 00:01:41]} {[%emt
00:00:08]} 50. Rb3 {[%clk 00:02:00]} {[%emt 00:00:29]} Bd5 {[%clk 00:01:23]}
{[%emt 00:00:28]} 51. Rd3 {[%clk 00:01:45]} {[%emt 00:00:25]} Bc4 {[%clk
00:01:31]} {[%emt 00:00:02]} 52. Kg1 {[%clk 00:01:54]} Rb2 {[%clk 00:01:31]}
{[%emt 00:00:10]} 53. Rd1 {[%clk 00:01:48]} {[%emt 00:00:15]} Be2 {[%clk
00:01:07]} {[%emt 00:00:35]} 54. Re1 {[%clk 00:01:50]} {[%emt 00:00:08]} Bf3
{[%clk 00:01:14]} {[%emt 00:00:04]} 55. Be4 {[%clk 00:01:45]} {[%emt 00:00:15]}
Bg4 {[%clk 00:00:49]} {[%emt 00:00:35]} 56. Rb1 {[%clk 00:01:15]} {[%emt
00:00:39]} Ra2 {[%clk 00:00:55]} {[%emt 00:00:05]} 57. Rb3 {[%clk 00:01:13]}
{[%emt 00:00:12]} Re2 {[%clk 00:00:55]} {[%emt 00:00:10]} 58. Bf3 {[%clk
00:01:21]} {[%emt 00:00:03]} Bxf3 {[%clk 00:00:46]} {[%emt 00:00:19]} 59. Rxf3
{[%clk 00:01:29]} {[%emt 00:00:01]} Ra2 {[%clk 00:00:53]} {[%emt 00:00:03]} 60.
h5 {[%clk 00:01:37]} {[%emt 00:00:02]} Ra1+ {[%clk 00:01:02]} {[%emt 00:00:01]}
61. Kg2 {[%clk 00:01:46]} Ra2+ {[%clk 00:01:07]} {[%emt 00:00:04]} 62. Kh3
{[%clk 00:01:55]} {[%emt 00:00:01]} Ra1 {[%clk 00:01:14]} {[%emt 00:00:03]} 63.
Kg4 {[%clk 00:02:03]} {[%emt 00:00:02]} Rc1 {[%clk 00:01:19]} {[%emt 00:00:05]}
64. a4 {[%clk 00:02:09]} {[%emt 00:00:04]} Rc4+ {[%clk 00:01:25]} {[%emt
00:00:03]} 65. Rf4 {[%clk 00:02:18]} Rc1 {[%clk 00:01:40]} {[%emt 00:00:05]} 66.
Kg5 {[%clk 00:02:35]} {[%emt 00:00:04]} Rg1 {[%clk 00:01:44]} {[%emt 00:00:07]}
67. g4 {[%clk 00:02:44]} {[%emt 00:00:01]} Ra1 {[%clk 00:01:50]} {[%emt
00:00:03]} 68. a5+ {[%clk 00:02:51]} {[%emt 00:00:02]} Kb5 {[%clk 00:01:57]}
{[%emt 00:00:03]} 69. h6 {[%clk 00:02:59]} {[%emt 00:00:02]} Rd1 {[%clk
00:01:58]} {[%emt 00:00:08]} 70. h7 {[%clk 00:03:05]} {[%emt 00:00:05]} Rh1
{[%clk 00:01:57]} {[%emt 00:00:12]} 71. Kg6 {[%clk 00:03:14]} {[%emt 00:00:01]}
Rh2 {[%clk 00:02:01]} {[%emt 00:00:06]} 72. Kg7 {[%clk 00:03:22]} {[%emt
00:00:02]} Ka6 {[%clk 00:01:59]} {[%emt 00:00:12]} 73. h8=Q {[%clk 00:03:28]}
{[%emt 00:00:03]} Rxh8 {[%clk 00:01:59]} {[%emt 00:00:11]} 74. Kxh8 {[%clk
00:03:37]} Kb7 {[%clk 00:02:07]} {[%emt 00:00:02]} 75. b5 {[%clk 00:03:45]}
{[%emt 00:00:02]} Ka7 {[%clk 00:02:14]} {[%emt 00:00:02]} 76. Rf7+ {[%clk
00:03:54]} {[%emt 00:00:01]} Kb8 {[%clk 00:02:23]} {[%emt 00:00:01]} 77. b6
{[%clk 00:04:03]} {[%emt 00:00:02]} Ka8 {[%clk 00:02:31]} {[%emt 00:00:02]} 78.
a6 {[%clk 00:04:12]} Kb8 {[%clk 00:02:40]} {[%emt 00:00:02]} 79. Rf8# {[%clk
00:04:21]} 1-0